[Event "*** Qualifier 4: Titled Tuesday 3|2 Blitz"]
[Site "Chess.com"]
[Date "2017.04.25"]
[Round "6"]
[White "jcgs1030"]
[Black "prochn"]
[Result "1-0"]
[WhiteElo "2270"]
[BlackElo "2170"]
[TimeControl "180+2"]
[EndTime "14:11:33 PDT"]
[Termination "jcgs1030 won by resignation"]

1. e4 {[%clk 0:03:02]} 1... c6 {[%clk 0:03:01.2]} 2. d4 {[%clk 0:03:01.9]} 2...
d5 {[%clk 0:03:02.3]} 3. e5 {[%clk 0:03:03]} 3... Bf5 {[%clk 0:03:02.9]} 4. Nf3
{[%clk 0:03:03.2]} 4... e6 {[%clk 0:03:03.8]} 5. Be2 {[%clk 0:03:04.4]} 5... Ne7
{[%clk 0:03:04.5]} 6. O-O {[%clk 0:03:06.3]} 6... Nd7 {[%clk 0:03:04.9]} 7. Nbd2
{[%clk 0:03:08.2]} 7... h6 {[%clk 0:03:06.3]} 8. Nb3 {[%clk 0:03:09.3]} 8... Qc7
{[%clk 0:03:07.3]} 9. c3 {[%clk 0:03:07.4]} 9... g5 {[%clk 0:03:08.1]} 10. Ne1
{[%clk 0:03:07.3]} 10... Bg7 {[%clk 0:03:09]} 11. g3 {[%clk 0:03:08.2]} 11...
O-O-O {[%clk 0:03:04.2]} 12. Ng2 {[%clk 0:03:08.2]} 12... f6 {[%clk 0:03:05]}
13. f4 {[%clk 0:03:05]} 13... fxe5 {[%clk 0:02:49.9]} 14. fxe5 {[%clk
0:03:03.8]} 14... Rdf8 {[%clk 0:02:38.3]} 15. Bg4 {[%clk 0:03:00.4]} 15... h5
{[%clk 0:02:33.4]} 16. Bxh5 {[%clk 0:02:54.7]} 16... Bh3 {[%clk 0:02:25.8]} 17.
Rxf8+ {[%clk 0:02:53.2]} 17... Nxf8 {[%clk 0:02:24.2]} 18. Bxg5 {[%clk
0:02:53.9]} 18... Nf5 {[%clk 0:02:21.6]} 19. Nf4 {[%clk 0:02:50.7]} 19... Nh7
{[%clk 0:01:54.9]} 20. Nxh3 {[%clk 0:02:46.3]} 20... Rg8 {[%clk 0:01:52.8]} 21.
Bg4 {[%clk 0:02:43.6]} 21... Nxg5 {[%clk 0:01:51.2]} 22. Nxg5 {[%clk 0:02:43.6]}
22... Bxe5 {[%clk 0:01:42.2]} 23. Nxe6 {[%clk 0:02:42.3]} 23... Qf7 {[%clk
0:01:33.4]} 24. dxe5 {[%clk 0:02:37.8]} 24... Qxe6 {[%clk 0:01:29.7]} 25. Nd4
{[%clk 0:02:37.8]} 1-0

[Event "*** Qualifier 4: Titled Tuesday 3|2 Blitz"]
[Site "Chess.com"]
[Date "2017.04.25"]
[Round "6"]
[White "FearlessKing64"]
[Black "geeeeri"]
[Result "1-0"]
[WhiteElo "2090"]
[BlackElo "2259"]
[TimeControl "180+2"]
[EndTime "14:11:47 PDT"]
[Termination "FearlessKing64 won by resignation"]

1. e4 {[%clk 0:03:02]} 1... e6 {[%clk 0:02:53.7]} 2. d4 {[%clk 0:03:02.6]} 2...
d5 {[%clk 0:02:51.9]} 3. Nd2 {[%clk 0:03:03.8]} 3... Nf6 {[%clk 0:02:52.2]} 4.
e5 {[%clk 0:03:04]} 4... Nfd7 {[%clk 0:02:53.9]} 5. f4 {[%clk 0:03:05.4]} 5...
c5 {[%clk 0:02:55.8]} 6. c3 {[%clk 0:03:06.9]} 6... Nc6 {[%clk 0:02:57.7]} 7.
Ndf3 {[%clk 0:03:08.3]} 7... a6 {[%clk 0:02:58.9]} 8. a3 {[%clk 0:03:09.7]} 8...
b5 {[%clk 0:02:59.8]} 9. b3 {[%clk 0:03:07.6]} 9... g6 {[%clk 0:03:01.2]} 10.
Bd3 {[%clk 0:03:07.7]} 10... Bb7 {[%clk 0:03:02.3]} 11. Ne2 {[%clk 0:03:08.6]}
11... c4 {[%clk 0:03:02.5]} 12. Bc2 {[%clk 0:03:03.5]} 12... h5 {[%clk
0:03:02.7]} 13. b4 {[%clk 0:03:01.1]} 13... a5 {[%clk 0:03:01.8]} 14. Be3 {[%clk
0:03:00.6]} 14... axb4 {[%clk 0:03:02.9]} 15. axb4 {[%clk 0:03:00]} 15... Bxb4
{[%clk 0:03:02.8]} 16. Rxa8 {[%clk 0:02:53.1]} 16... Qxa8 {[%clk 0:03:01.2]} 17.
cxb4 {[%clk 0:02:54.2]} 17... Nxb4 {[%clk 0:03:03.1]} 18. O-O {[%clk 0:02:53.6]}
18... Nxc2 {[%clk 0:03:04.3]} 19. Qxc2 {[%clk 0:02:53.8]} 19... b4 {[%clk
0:03:06.2]} 20. Nh4 {[%clk 0:02:50.4]} 20... b3 {[%clk 0:03:06.1]} 21. Qb1
{[%clk 0:02:49.4]} 21... Rg8 {[%clk 0:02:53.4]} 22. f5 {[%clk 0:02:39.3]} 22...
gxf5 {[%clk 0:02:51.5]} 23. Nxf5 {[%clk 0:02:40]} 23... Nxe5 {[%clk 0:02:23.6]}
24. Nd6+ {[%clk 0:02:34.3]} 24... Kd8 {[%clk 0:02:13.4]} 25. dxe5 {[%clk
0:02:33.9]} 25... d4 {[%clk 0:02:14.7]} 26. Bg5+ {[%clk 0:02:16.7]} 26... Rxg5
{[%clk 0:01:51.3]} 27. Nxf7+ {[%clk 0:02:16.5]} 1-0

[Event "*** Qualifier 4: Titled Tuesday 3|2 Blitz"]
[Site "Chess.com"]
[Date "2017.04.25"]
[Round "6"]
[White "AllStarShark"]
[Black "plouarzel"]
[Result "1/2-1/2"]
[WhiteElo "2305"]
[BlackElo "2432"]
[TimeControl "180+2"]
[EndTime "14:11:51 PDT"]
[Termination "Game drawn by agreement"]

1. d4 {[%clk 0:03:02]} 1... Nf6 {[%clk 0:02:58.7]} 2. Bg5 {[%clk 0:03:01.4]}
2... d5 {[%clk 0:02:56.1]} 3. Bxf6 {[%clk 0:03:01.7]} 3... exf6 {[%clk
0:02:56.9]} 4. e3 {[%clk 0:03:02.1]} 4... Bd6 {[%clk 0:02:58]} 5. g3 {[%clk
0:03:01.1]} 5... O-O {[%clk 0:02:58.2]} 6. Bg2 {[%clk 0:03:02.6]} 6... c6 {[%clk
0:02:57.3]} 7. Ne2 {[%clk 0:03:03.6]} 7... Qb6 {[%clk 0:02:57.6]} 8. b3 {[%clk
0:03:03.9]} 8... f5 {[%clk 0:02:57.3]} 9. O-O {[%clk 0:03:04.3]} 9... Nd7 {[%clk
0:02:58.1]} 10. c4 {[%clk 0:03:02.3]} 10... dxc4 {[%clk 0:02:58.4]} 11. bxc4
{[%clk 0:03:04.2]} 11... Qa6 {[%clk 0:02:57.1]} 12. Nd2 {[%clk 0:03:00.2]} 12...
Nf6 {[%clk 0:02:53.6]} 13. Qc2 {[%clk 0:02:55.6]} 13... Be6 {[%clk 0:02:50.2]}
14. Rfc1 {[%clk 0:02:40.2]} 14... Rfe8 {[%clk 0:02:41.1]} 15. Nf4 {[%clk
0:02:33.7]} 15... Bb4 {[%clk 0:02:25]} 16. Nxe6 {[%clk 0:02:31.6]} 16... Rxe6
{[%clk 0:02:14.6]} 17. a3 {[%clk 0:02:02.2]} 17... Bxd2 {[%clk 0:02:08.1]} 18.
Qxd2 {[%clk 0:02:04.1]} 18... Rd8 {[%clk 0:02:05.6]} 19. c5 {[%clk 0:01:53.4]}
19... Ne4 {[%clk 0:02:03.1]} 20. Bxe4 {[%clk 0:01:52.5]} 20... fxe4 {[%clk
0:02:03.2]} 1/2-1/2

[Event "*** Qualifier 4: Titled Tuesday 3|2 Blitz"]
[Site "Chess.com"]
[Date "2017.04.25"]
[Round "6"]
[White "DiogenesSinopeus"]
[Black "chesstatour"]
[Result "1-0"]
[WhiteElo "2261"]
[BlackElo "1901"]
[TimeControl "180+2"]
[EndTime "14:12:45 PDT"]
[Termination "DiogenesSinopeus won by resignation"]

1. d4 {[%clk 0:03:02]} 1... Nf6 {[%clk 0:02:59.1]} 2. c4 {[%clk 0:03:03.2]} 2...
e6 {[%clk 0:02:57.2]} 3. Nc3 {[%clk 0:03:03.6]} 3... Bb4 {[%clk 0:02:56.7]} 4.
e3 {[%clk 0:03:04.8]} 4... b6 {[%clk 0:02:57]} 5. Ne2 {[%clk 0:03:05.6]} 5...
Bb7 {[%clk 0:02:58]} 6. a3 {[%clk 0:03:06.4]} 6... Bxc3+ {[%clk 0:02:54.4]} 7.
Nxc3 {[%clk 0:03:08.3]} 7... Ne4 {[%clk 0:02:54.7]} 8. Qc2 {[%clk 0:03:02.9]}
8... f5 {[%clk 0:02:54.1]} 9. b4 {[%clk 0:02:56]} 9... O-O {[%clk 0:02:52.8]}
10. Bb2 {[%clk 0:02:57.4]} 10... c5 {[%clk 0:02:49.2]} 11. Bd3 {[%clk
0:02:40.6]} 11... d5 {[%clk 0:02:07.7]} 12. dxc5 {[%clk 0:02:22.2]} 12... bxc5
{[%clk 0:02:00]} 13. O-O-O {[%clk 0:02:23]} 13... Qe7 {[%clk 0:01:37.8]} 14. f3
{[%clk 0:02:11]} 14... Nxc3 {[%clk 0:01:21.3]} 15. Qxc3 {[%clk 0:02:12.9]} 15...
cxb4 {[%clk 0:01:08.5]} 16. axb4 {[%clk 0:02:14.8]} 16... dxc4 {[%clk
0:01:08.5]} 17. Bxc4 {[%clk 0:02:16.7]} 17... Nd7 {[%clk 0:00:52.1]} 18. Rxd7
{[%clk 0:02:09.1]} 1-0

[Event "*** Qualifier 4: Titled Tuesday 3|2 Blitz"]
[Site "Chess.com"]
[Date "2017.04.25"]
[Round "6"]
[White "brauliocuarta"]
[Black "Grootneus"]
[Result "0-1"]
[WhiteElo "2046"]
[BlackElo "2119"]
[TimeControl "180+2"]
[EndTime "14:13:49 PDT"]
[Termination "Grootneus won by resignation"]

1. d4 {[%clk 0:03:00.7]} 1... Nf6 {[%clk 0:03:00.2]} 2. c4 {[%clk 0:03:00.8]}
2... c5 {[%clk 0:03:01.7]} 3. d5 {[%clk 0:03:01.1]} 3... b5 {[%clk 0:03:01.6]}
4. Qc2 {[%clk 0:03:01.4]} 4... bxc4 {[%clk 0:03:02.3]} 5. e4 {[%clk 0:03:01.4]}
5... d6 {[%clk 0:03:03.5]} 6. Bxc4 {[%clk 0:03:01.9]} 6... g6 {[%clk 0:03:05.2]}
7. Nf3 {[%clk 0:03:02.3]} 7... Bg7 {[%clk 0:03:06.9]} 8. O-O {[%clk 0:03:03]}
8... O-O {[%clk 0:03:08.4]} 9. h3 {[%clk 0:03:03.2]} 9... Nbd7 {[%clk
0:03:09.4]} 10. Re1 {[%clk 0:03:03.1]} 10... Nb6 {[%clk 0:02:59.6]} 11. Bf1
{[%clk 0:03:02.8]} 11... e6 {[%clk 0:02:55.6]} 12. dxe6 {[%clk 0:02:59.4]} 12...
Bxe6 {[%clk 0:02:56.3]} 13. Nc3 {[%clk 0:02:59.6]} 13... d5 {[%clk 0:02:51.3]}
14. exd5 {[%clk 0:02:44.5]} 14... Nfxd5 {[%clk 0:02:53.2]} 15. Nxd5 {[%clk
0:02:44.6]} 15... Bxd5 {[%clk 0:02:55.1]} 16. Qxc5 {[%clk 0:02:31]} 16... Bxf3
{[%clk 0:02:56]} 17. gxf3 {[%clk 0:02:32.4]} 17... Rc8 {[%clk 0:02:45.2]} 18.
Qa5 {[%clk 0:02:30.6]} 18... Qf6 {[%clk 0:02:40.6]} 19. Bg2 {[%clk 0:02:15.5]}
19... Rfe8 {[%clk 0:02:21.6]} 20. Bg5 {[%clk 0:02:04.4]} 20... Qxb2 {[%clk
0:02:18.4]} 21. Qxa7 {[%clk 0:01:56.6]} 21... Bd4 {[%clk 0:02:04.2]} 22. Bh4
{[%clk 0:01:37.3]} 22... Nd5 {[%clk 0:01:09.5]} 23. Qd7 {[%clk 0:01:28.7]} 23...
Red8 {[%clk 0:01:10.7]} 24. Qa4 {[%clk 0:01:13.1]} 24... Nf4 {[%clk 0:00:58.7]}
25. Bxd8 {[%clk 0:01:13]} 25... Qxf2+ {[%clk 0:00:56]} 0-1

[Event "*** Qualifier 4: Titled Tuesday 3|2 Blitz"]
[Site "Chess.com"]
[Date "2017.04.25"]
[Round "6"]
[White "MyleneFarmer"]
[Black "feigelag"]
[Result "0-1"]
[WhiteElo "2342"]
[BlackElo "2318"]
[TimeControl "180+2"]
[EndTime "14:14:04 PDT"]
[Termination "feigelag won by checkmate"]

1. d4 {[%clk 0:03:01.7]} 1... e6 {[%clk 0:02:59.4]} 2. c4 {[%clk 0:03:00.7]}
2... f5 {[%clk 0:03:00.2]} 3. Nf3 {[%clk 0:02:57.4]} 3... Nf6 {[%clk 0:03:01.8]}
4. g3 {[%clk 0:02:55.5]} 4... d5 {[%clk 0:03:03.3]} 5. Bg2 {[%clk 0:02:56.2]}
5... Bd6 {[%clk 0:03:03.4]} 6. O-O {[%clk 0:02:56.7]} 6... O-O {[%clk
0:03:02.5]} 7. Nc3 {[%clk 0:02:51.8]} 7... c6 {[%clk 0:03:03.4]} 8. Qc2 {[%clk
0:02:44.6]} 8... Ne4 {[%clk 0:03:00.4]} 9. Nxe4 {[%clk 0:02:34.9]} 9... dxe4
{[%clk 0:02:55.2]} 10. Ne5 {[%clk 0:02:24.2]} 10... Nd7 {[%clk 0:02:55.3]} 11.
Bf4 {[%clk 0:01:54.2]} 11... Bxe5 {[%clk 0:02:44.1]} 12. Bxe5 {[%clk 0:01:50]}
12... Nxe5 {[%clk 0:02:44.2]} 13. dxe5 {[%clk 0:01:49.5]} 13... Qd4 {[%clk
0:02:45.8]} 14. Qc3 {[%clk 0:01:47]} 14... Qxc3 {[%clk 0:02:45.7]} 15. bxc3
{[%clk 0:01:48.9]} 15... b6 {[%clk 0:02:44.9]} 16. f3 {[%clk 0:01:33.2]} 16...
exf3 {[%clk 0:02:40.3]} 17. Bxf3 {[%clk 0:01:34.4]} 17... Ba6 {[%clk 0:02:38]}
18. c5 {[%clk 0:01:23.3]} 18... Rad8 {[%clk 0:02:28.2]} 19. cxb6 {[%clk
0:01:20.8]} 19... axb6 {[%clk 0:02:27.5]} 20. Rfd1 {[%clk 0:01:18.1]} 20... c5
{[%clk 0:02:25.4]} 21. Rab1 {[%clk 0:01:16]} 21... Bc4 {[%clk 0:02:24.1]} 22. a3
{[%clk 0:00:57.5]} 22... b5 {[%clk 0:02:21]} 23. Kf2 {[%clk 0:00:56.9]} 23...
Kf7 {[%clk 0:02:17.4]} 24. Bc6 {[%clk 0:00:49.2]} 24... Rd5 {[%clk 0:02:14.6]}
25. Bxd5 {[%clk 0:00:40.1]} 25... exd5 {[%clk 0:02:14.8]} 26. a4 {[%clk
0:00:32.4]} 26... bxa4 {[%clk 0:02:14.8]} 27. Rb6 {[%clk 0:00:33.5]} 27... Ra8
{[%clk 0:02:10.1]} 28. Rc6 {[%clk 0:00:22.3]} 28... a3 {[%clk 0:02:07]} 29. Ra1
{[%clk 0:00:23.2]} 29... a2 {[%clk 0:02:04.9]} 30. Rxc5 {[%clk 0:00:24.6]} 30...
Ke6 {[%clk 0:02:04.7]} 31. Ke3 {[%clk 0:00:24.2]} 31... Kxe5 {[%clk 0:02:05.7]}
32. Rc7 {[%clk 0:00:20.1]} 32... g5 {[%clk 0:02:05.7]} 33. Re7+ {[%clk
0:00:18.9]} 33... Kd6 {[%clk 0:02:06]} 34. Rxh7 {[%clk 0:00:19.9]} 34... Re8+
{[%clk 0:02:06.8]} 35. Kd4 {[%clk 0:00:20.7]} 35... Re4# {[%clk 0:02:01.4]} 0-1

[Event "*** Qualifier 4: Titled Tuesday 3|2 Blitz"]
[Site "Chess.com"]
[Date "2017.04.25"]
[Round "6"]
[White "Hikaru"]
[Black "pastouche06"]
[Result "1-0"]
[WhiteElo "2935"]
[BlackElo "2333"]
[TimeControl "180+2"]
[EndTime "14:14:11 PDT"]
[Termination "Hikaru won by resignation"]

1. e4 {[%clk 0:03:02]} 1... c6 {[%clk 0:02:52.8]} 2. Nc3 {[%clk 0:03:02.7]} 2...
d5 {[%clk 0:02:53]} 3. Nf3 {[%clk 0:03:04.6]} 3... Bg4 {[%clk 0:02:52.7]} 4. h3
{[%clk 0:03:05.3]} 4... Bxf3 {[%clk 0:02:50.6]} 5. Qxf3 {[%clk 0:03:07.2]} 5...
Nf6 {[%clk 0:02:52.2]} 6. g3 {[%clk 0:03:05.2]} 6... dxe4 {[%clk 0:02:43.5]} 7.
Nxe4 {[%clk 0:03:06]} 7... Nxe4 {[%clk 0:02:45.4]} 8. Qxe4 {[%clk 0:03:07.9]}
8... Qd5 {[%clk 0:02:46.5]} 9. Bg2 {[%clk 0:03:09.2]} 9... e6 {[%clk 0:02:46.8]}
10. O-O {[%clk 0:03:10]} 10... Qxe4 {[%clk 0:02:47.6]} 11. Bxe4 {[%clk
0:03:11.9]} 11... Nd7 {[%clk 0:02:49.1]} 12. c3 {[%clk 0:03:12.9]} 12... Bd6
{[%clk 0:02:47]} 13. d4 {[%clk 0:03:13.7]} 13... O-O {[%clk 0:02:44.2]} 14. Kg2
{[%clk 0:03:11]} 14... Rad8 {[%clk 0:02:42.8]} 15. Bg5 {[%clk 0:03:09.2]} 15...
Rb8 {[%clk 0:02:32.8]} 16. a4 {[%clk 0:03:02.3]} 16... h6 {[%clk 0:02:33.3]} 17.
Bd2 {[%clk 0:03:01.7]} 17... e5 {[%clk 0:02:29.5]} 18. dxe5 {[%clk 0:03:00.7]}
18... Nxe5 {[%clk 0:02:31.4]} 19. b3 {[%clk 0:03:01.8]} 19... Rbd8 {[%clk
0:02:29.3]} 20. Be3 {[%clk 0:03:02.4]} 20... a6 {[%clk 0:02:29]} 21. Bb6 {[%clk
0:03:00.7]} 21... Rde8 {[%clk 0:02:18.8]} 22. Bf5 {[%clk 0:02:57.1]} 22... g6
{[%clk 0:02:10.6]} 23. Rad1 {[%clk 0:02:52.5]} 23... Bb8 {[%clk 0:02:11.3]} 24.
Bb1 {[%clk 0:02:51.5]} 24... f5 {[%clk 0:01:24.8]} 25. b4 {[%clk 0:02:51.1]}
25... Kg7 {[%clk 0:01:10.4]} 26. Ba2 {[%clk 0:02:51.4]} 26... f4 {[%clk
0:01:01.5]} 27. Rfe1 {[%clk 0:02:44.8]} 27... fxg3 {[%clk 0:00:31.9]} 28. fxg3
{[%clk 0:02:45.2]} 28... Nd3 {[%clk 0:00:30.8]} 29. Bd4+ {[%clk 0:02:21]} 29...
Kh7 {[%clk 0:00:27.2]} 30. Rxe8 {[%clk 0:02:13]} 30... Rxe8 {[%clk 0:00:29.1]}
31. Rxd3 {[%clk 0:02:14.2]} 31... Re2+ {[%clk 0:00:29.8]} 32. Kf3 {[%clk
0:02:12.1]} 32... Rxa2 {[%clk 0:00:31.7]} 33. Re3 {[%clk 0:02:13.6]} 33... Bd6
{[%clk 0:00:20.1]} 34. Re6 {[%clk 0:02:11.8]} 34... Bf8 {[%clk 0:00:19.6]} 35.
Rf6 {[%clk 0:02:12.8]} 1-0

[Event "*** Qualifier 4: Titled Tuesday 3|2 Blitz"]
[Site "Chess.com"]
[Date "2017.04.25"]
[Round "6"]
[White "NMJeevanK"]
[Black "stepanosinovsky"]
[Result "1-0"]
[WhiteElo "2401"]
[BlackElo "2260"]
[TimeControl "180+2"]
[EndTime "14:14:29 PDT"]
[Termination "NMJeevanK won by resignation"]

1. e4 {[%clk 0:03:02]} 1... e5 {[%clk 0:03:00.6]} 2. Nf3 {[%clk 0:03:02.9]} 2...
Nc6 {[%clk 0:03:01.6]} 3. Bb5 {[%clk 0:03:04.5]} 3... a6 {[%clk 0:03:02.5]} 4.
Ba4 {[%clk 0:03:05.9]} 4... Nf6 {[%clk 0:03:02.7]} 5. O-O {[%clk 0:03:07]} 5...
Be7 {[%clk 0:03:03.1]} 6. Re1 {[%clk 0:03:07.9]} 6... b5 {[%clk 0:03:04.1]} 7.
Bb3 {[%clk 0:03:09.6]} 7... O-O {[%clk 0:03:04.9]} 8. d4 {[%clk 0:03:08.8]} 8...
Nxd4 {[%clk 0:02:56.9]} 9. Nxd4 {[%clk 0:03:09.3]} 9... exd4 {[%clk 0:02:57.3]}
10. e5 {[%clk 0:03:11.2]} 10... Ne8 {[%clk 0:02:55.2]} 11. c3 {[%clk 0:03:12.1]}
11... d6 {[%clk 0:01:38.9]} 12. Qf3 {[%clk 0:02:54.1]} 12... Rb8 {[%clk
0:01:31.7]} 13. cxd4 {[%clk 0:02:55.3]} 13... Bb7 {[%clk 0:01:21.7]} 14. Qh3
{[%clk 0:02:49.1]} 14... c5 {[%clk 0:01:08]} 15. dxc5 {[%clk 0:02:40.6]} 15...
dxe5 {[%clk 0:00:56.9]} 16. Nc3 {[%clk 0:02:34.5]} 16... Bxc5 {[%clk 0:00:55.9]}
17. Rxe5 {[%clk 0:02:33.1]} 17... Qb6 {[%clk 0:00:39]} 18. Be3 {[%clk
0:02:33.8]} 18... Bxe3 {[%clk 0:00:38.6]} 19. Rxe3 {[%clk 0:02:35.7]} 19... Nf6
{[%clk 0:00:38.2]} 20. Rg3 {[%clk 0:02:28.4]} 20... Ne4 {[%clk 0:00:16.8]} 21.
Nxe4 {[%clk 0:02:16.8]} 21... Bxe4 {[%clk 0:00:18.7]} 22. Re1 {[%clk 0:02:17.9]}
22... Bg6 {[%clk 0:00:18.1]} 23. Rge3 {[%clk 0:02:15.2]} 23... a5 {[%clk
0:00:17.6]} 24. Qf3 {[%clk 0:02:10.7]} 24... a4 {[%clk 0:00:17.3]} 25. Bd5
{[%clk 0:02:11.9]} 25... b4 {[%clk 0:00:17.9]} 26. h4 {[%clk 0:02:09.9]} 26...
Rbd8 {[%clk 0:00:12.1]} 27. h5 {[%clk 0:02:03.5]} 27... Bc2 {[%clk 0:00:05.1]}
28. Re8 {[%clk 0:01:34.8]} 28... h6 {[%clk 0:00:03.3]} 29. Qxf7+ {[%clk
0:01:32.7]} 1-0

[Event "*** Qualifier 4: Titled Tuesday 3|2 Blitz"]
[Site "Chess.com"]
[Date "2017.04.25"]
[Round "6"]
[White "RichardLeyvaP"]
[Black "Makalexa"]
[Result "0-1"]
[WhiteElo "2401"]
[BlackElo "2199"]
[TimeControl "180+2"]
[EndTime "14:15:12 PDT"]
[Termination "Makalexa won on time"]

1. e4 {[%clk 0:02:52.1]} 1... e5 {[%clk 0:02:59.9]} 2. Nf3 {[%clk 0:02:50.8]}
2... Nc6 {[%clk 0:03:01.5]} 3. Bb5 {[%clk 0:02:50.9]} 3... a6 {[%clk 0:03:02.4]}
4. Bxc6 {[%clk 0:02:52.1]} 4... dxc6 {[%clk 0:03:03.3]} 5. Nc3 {[%clk 0:02:54]}
5... Bd6 {[%clk 0:02:45.3]} 6. d4 {[%clk 0:02:49.5]} 6... exd4 {[%clk
0:02:39.8]} 7. Nxd4 {[%clk 0:02:50.6]} 7... c5 {[%clk 0:02:40]} 8. Nb3 {[%clk
0:02:47.4]} 8... Be6 {[%clk 0:02:12.8]} 9. O-O {[%clk 0:02:46.1]} 9... Qe7
{[%clk 0:02:11.2]} 10. Be3 {[%clk 0:02:41.9]} 10... O-O-O {[%clk 0:02:03.7]} 11.
Qe2 {[%clk 0:02:42.7]} 11... Nf6 {[%clk 0:01:55.8]} 12. f3 {[%clk 0:02:40.5]}
12... h5 {[%clk 0:01:54.4]} 13. Rad1 {[%clk 0:02:35.4]} 13... h4 {[%clk
0:01:15.4]} 14. Na4 {[%clk 0:02:22.1]} 14... Bxb3 {[%clk 0:01:12]} 15. cxb3
{[%clk 0:02:09.9]} 15... Qe5 {[%clk 0:01:12.9]} 16. Rxd6 {[%clk 0:01:54.1]}
16... cxd6 {[%clk 0:01:11.4]} 17. b4 {[%clk 0:01:48.7]} 17... Nd7 {[%clk
0:00:56.6]} 18. bxc5 {[%clk 0:01:43]} 18... dxc5 {[%clk 0:00:57.6]} 19. Rc1
{[%clk 0:01:42]} 19... Kb8 {[%clk 0:00:50.4]} 20. b4 {[%clk 0:01:05.7]} 20...
cxb4 {[%clk 0:00:44]} 21. Qf2 {[%clk 0:01:06.2]} 21... Qd6 {[%clk 0:00:33.9]}
22. e5 {[%clk 0:00:57.9]} 22... Qxe5 {[%clk 0:00:31.9]} 23. Ba7+ {[%clk
0:00:56.7]} 23... Ka8 {[%clk 0:00:33.1]} 24. Rd1 {[%clk 0:00:57.7]} 24... Qb5
{[%clk 0:00:32]} 25. Nb2 {[%clk 0:00:44.4]} 25... b6 {[%clk 0:00:32.5]} 0-1

[Event "*** Qualifier 4: Titled Tuesday 3|2 Blitz"]
[Site "Chess.com"]
[Date "2017.04.25"]
[Round "6"]
[White "Blitzstream"]
[Black "GamayevOleg"]
[Result "1-0"]
[WhiteElo "2442"]
[BlackElo "2336"]
[TimeControl "180+2"]
[EndTime "14:15:19 PDT"]
[Termination "Blitzstream won by resignation"]

1. g3 {[%clk 0:03:02]} 1... c6 {[%clk 0:02:59.7]} 2. Bg2 {[%clk 0:03:02.8]} 2...
d5 {[%clk 0:03:01]} 3. e3 {[%clk 0:03:04.2]} 3... g6 {[%clk 0:02:57.9]} 4. Ne2
{[%clk 0:03:03.2]} 4... Bg7 {[%clk 0:02:59.3]} 5. d3 {[%clk 0:03:02.9]} 5... Nf6
{[%clk 0:02:58.5]} 6. Nd2 {[%clk 0:03:03.6]} 6... O-O {[%clk 0:02:57.3]} 7. h3
{[%clk 0:03:03.6]} 7... Nbd7 {[%clk 0:02:57]} 8. a3 {[%clk 0:03:04.5]} 8... Re8
{[%clk 0:02:58]} 9. O-O {[%clk 0:03:04.7]} 9... a5 {[%clk 0:02:57.7]} 10. Rb1
{[%clk 0:02:59.2]} 10... a4 {[%clk 0:02:57.9]} 11. b4 {[%clk 0:02:48.6]} 11...
axb3 {[%clk 0:02:55.8]} 12. cxb3 {[%clk 0:02:49.9]} 12... Qa5 {[%clk 0:02:46.9]}
13. Bb2 {[%clk 0:02:44.6]} 13... Nh5 {[%clk 0:02:32.7]} 14. Bxg7 {[%clk
0:02:39.6]} 14... Nxg7 {[%clk 0:02:19.7]} 15. Ra1 {[%clk 0:02:36.1]} 15... Ne5
{[%clk 0:02:17.8]} 16. Qc2 {[%clk 0:02:30.7]} 16... Bxh3 {[%clk 0:02:18.6]} 17.
b4 {[%clk 0:02:19.1]} 17... Qa6 {[%clk 0:02:08]} 18. Bxh3 {[%clk 0:02:17.8]}
18... Nxd3 {[%clk 0:02:02.8]} 19. Nd4 {[%clk 0:01:59]} 19... e5 {[%clk 0:01:38]}
20. b5 {[%clk 0:01:54.8]} 20... cxb5 {[%clk 0:01:24.1]} 21. Qxd3 {[%clk
0:01:52.8]} 21... exd4 {[%clk 0:01:24.1]} 22. Qxd4 {[%clk 0:01:54.4]} 22... Ne6
{[%clk 0:01:17.1]} 23. Qxd5 {[%clk 0:01:45.8]} 23... Red8 {[%clk 0:01:14.4]} 24.
Qa2 {[%clk 0:01:46.1]} 24... Nc5 {[%clk 0:01:15.3]} 25. Nb3 {[%clk 0:01:39.5]}
25... Ne4 {[%clk 0:01:09.9]} 26. Nd4 {[%clk 0:01:35.5]} 26... b4 {[%clk
0:01:02.5]} 27. Qc2 {[%clk 0:01:31.2]} 27... Nc3 {[%clk 0:00:23.5]} 28. axb4
{[%clk 0:01:29.5]} 28... Qc4 {[%clk 0:00:24.1]} 29. Rxa8 {[%clk 0:01:20.4]}
29... Rxa8 {[%clk 0:00:26]} 30. Rc1 {[%clk 0:01:20.5]} 30... Ra3 {[%clk
0:00:18.7]} 31. Qb2 {[%clk 0:01:11.8]} 31... Qa6 {[%clk 0:00:08.2]} 32. Rxc3
{[%clk 0:01:06]} 32... Ra1+ {[%clk 0:00:09]} 33. Rc1 {[%clk 0:01:03.7]} 1-0

[Event "*** Qualifier 4: Titled Tuesday 3|2 Blitz"]
[Site "Chess.com"]
[Date "2017.04.25"]
[Round "6"]
[White "Sebastian"]
[Black "EgorGeroev"]
[Result "0-1"]
[WhiteElo "2720"]
[BlackElo "2564"]
[TimeControl "180+2"]
[EndTime "14:16:00 PDT"]
[Termination "EgorGeroev won by resignation"]

1. e4 {[%clk 0:03:02]} 1... c5 {[%clk 0:02:58.9]} 2. Nf3 {[%clk 0:03:02.7]} 2...
d6 {[%clk 0:03:00.7]} 3. d4 {[%clk 0:03:03.6]} 3... cxd4 {[%clk 0:03:02.6]} 4.
Nxd4 {[%clk 0:03:05.1]} 4... Nf6 {[%clk 0:03:04]} 5. Nc3 {[%clk 0:03:06.2]} 5...
a6 {[%clk 0:03:05.7]} 6. Bg5 {[%clk 0:03:06.7]} 6... e6 {[%clk 0:03:05.7]} 7. f4
{[%clk 0:03:05.6]} 7... Qb6 {[%clk 0:03:06.3]} 8. Qd2 {[%clk 0:03:05.1]} 8...
Qxb2 {[%clk 0:03:05.2]} 9. Rb1 {[%clk 0:03:06.5]} 9... Qa3 {[%clk 0:03:06.8]}
10. e5 {[%clk 0:03:08.1]} 10... dxe5 {[%clk 0:03:06.4]} 11. fxe5 {[%clk
0:03:10]} 11... h6 {[%clk 0:03:06.5]} 12. Bh4 {[%clk 0:03:10.5]} 12... g5 {[%clk
0:03:02.5]} 13. exf6 {[%clk 0:03:07.7]} 13... gxh4 {[%clk 0:03:02.3]} 14. Be2
{[%clk 0:03:09.4]} 14... Qa5 {[%clk 0:03:00.9]} 15. O-O {[%clk 0:03:05.7]} 15...
Qg5 {[%clk 0:03:00.1]} 16. Qd3 {[%clk 0:03:03.3]} 16... h3 {[%clk 0:02:35]} 17.
Bf3 {[%clk 0:02:21.6]} 17... hxg2 {[%clk 0:02:22.4]} 18. Rf2 {[%clk 0:02:13.4]}
18... Nd7 {[%clk 0:02:13]} 19. Bxb7 {[%clk 0:01:19]} 19... Bxb7 {[%clk
0:01:36.2]} 20. Rxb7 {[%clk 0:01:19]} 20... Bd6 {[%clk 0:01:35.3]} 21. Rxg2
{[%clk 0:00:48.9]} 21... Qc1+ {[%clk 0:01:33.7]} 22. Kf2 {[%clk 0:00:26]} 22...
Nc5 {[%clk 0:01:24.9]} 23. Qf3 {[%clk 0:00:22.3]} 23... Nxb7 {[%clk 0:01:10]}
24. Qc6+ {[%clk 0:00:14.2]} 24... Kf8 {[%clk 0:01:08.8]} 25. Qxb7 {[%clk
0:00:15.7]} 25... Qf4+ {[%clk 0:01:08.2]} 26. Ke2 {[%clk 0:00:14.2]} 26... Re8
{[%clk 0:00:52.2]} 27. Ne4 {[%clk 0:00:15.1]} 27... Rg8 {[%clk 0:00:48.4]} 28.
Rxg8+ {[%clk 0:00:15.5]} 28... Kxg8 {[%clk 0:00:48.7]} 29. Kd3 {[%clk
0:00:17.1]} 29... Be5 {[%clk 0:00:42.9]} 30. c3 {[%clk 0:00:11.5]} 30... Bxd4
{[%clk 0:00:39.3]} 31. cxd4 {[%clk 0:00:11]} 31... Rb8 {[%clk 0:00:36.1]} 32.
Qc6 {[%clk 0:00:08.5]} 32... Qf3+ {[%clk 0:00:33.7]} 33. Kd2 {[%clk 0:00:09.4]}
33... Kh8 {[%clk 0:00:19.7]} 34. h4 {[%clk 0:00:07.3]} 34... Rg8 {[%clk
0:00:20.2]} 0-1